fUSD/lending_fUSD_20240704
["ID","MTS","AMOUNT","RATE_DAILY","PERIOD"]
[331120746,1720090135469,-150.0,0.00012247,2]
[331120747,1720090135503,-431.06738212,0.00012302,2]
[331120748,1720090135537,-210.93526836,0.00012314,2]
[331120749,1720090139784,795.94,0.00011404,2]
[331120750,1720090188577,661.16435023,0.00011199,2]
[331120770,1720090232299,-155.97353947,0.00012302,2]
[331120772,1720090232309,-249.4700045,0.00012302,2]
[331120774,1720090232318,-66.3096288,0.00012314,2]
[331120776,1720090232331,-89.26776491,0.00012314,2]
[331120778,1720090232341,-1124.25,0.0001307,2]
[331120780,1720090232351,-155.37220971,0.00013128,2]
[331120782,1720090232360,-483.56532851,0.00013128,2]
[331120783,1720090232369,-3297.64629233,0.00013128,2]
[331120784,1720090232381,-673.43302,0.00013128,2]
[331120785,1720090232392,-667.36237526,0.00013128,2]
[331120786,1720090232408,-5089.32473231,0.00013128,2]
[331120787,1720090232417,-206.82389427,0.00013128,2]
[331120788,1720090232427,-719.87,0.00013194,2]
[331120789,1720090232436,-744.0,0.00013322,2]
[331120790,1720090232446,-202.28208855,0.00013472,2]
[331120791,1720090232456,-156.19862631,0.00013472,2]
[331120792,1720090232465,-326.99344692,0.00013516,2]
[331120793,1720090232474,-486.89125262,0.00013576,2]
[331120794,1720090232484,-297.39737969,0.00013576,2]
[331120795,1720090232494,-158.29089989,0.00013576,2]
[331120796,1720090232505,-168.64,0.00013578,2]
[331120797,1720090232514,-795.94,0.00013668,2]
[331120798,1720090232523,-2850.40351265,0.00013698,2]
[331120799,1720090232533,-499.99,0.00013698,2]
[331120800,1720090232542,-999.99,0.00013698,2]
[331120801,1720090232551,-267.45,0.00013698,2]
[331120802,1720090232560,-768.07,0.00013699,2]
[331120803,1720090232569,-250.0,0.00013711,2]
[331120804,1720090232579,-500.0,0.00013737,2]
[331120805,1720090232588,-1068.44,0.00013737,2]
[331120806,1720090232598,-300.0,0.000138,5]
[331120807,1720090232607,-314.1557,0.000139,2]
[331120808,1720090232617,-600.0,0.000139,5]
[331120809,1720090232626,-445.3,0.00013961,2]
[331120810,1720090232635,-194.3941759,0.00013988,2]
[331120811,1720090232645,-444.40125779,0.00013988,2]
[331120812,1720090232655,-59399.37670633,0.00014,2]
[331120813,1720090232666,-508.47198714,0.00014,2]
[331120814,1720090232678,-23717.78225583,0.00014,2]
[331120815,1720090232689,-598.795,0.00014,2]
[331120816,1720090232700,-6204.643034,0.00014,2]
[331120817,1720090232712,-8419.14754862,0.00014,2]
[331120818,1720090232723,-39900.0,0.00014,2]
[331120822,1720090239467,-434.59268335,0.00013802,2]
[331120824,1720090239477,-317.07879292,0.00013988,2]
[331120826,1720090239487,-20240.7904888,0.00014,2]
[331120829,1720090239500,-72576.80957254,0.00014,2]
[331120831,1720090239513,-998.47755584,0.00014,2]
[331120833,1720090239525,-515.29338044,0.00014,2]
[331120835,1720090239536,-9695.6244994,0.00014,2]
[331120837,1720090239547,-9570.15,0.00014,2]
[331120926,1720090240429,-23091.4972219,0.00014,2]
[331120929,1720090240440,-2264.48904993,0.00014,2]
[331120931,1720090240451,-2542.6010891,0.00014,2]
[331120933,1720090240463,-1388.48681503,0.00014,2]
[331120935,1720090240474,-227924.25085967,0.00014,2]
[331120937,1720090240485,-297.74527253,0.00014,2]
[331120983,1720090240909,-1509.93193484,0.00014,2]
[331121223,1720090243266,-8441.74684275,0.00014,2]
[331121227,1720090243277,-334465.89557193,0.00014,2]
[331121316,1720090244390,-3000.0,0.00014,2]
[331121317,1720090244491,-553.79841733,0.00014,2]
[331121318,1720090244504,-2249.44983319,0.00014,2]
[331121319,1720090244516,-353.44412154,0.00014,2]
[331121334,1720090246382,-11560.78971484,0.00014,2]
[331121335,1720090246750,-775.32310067,0.00014,2]
[331121336,1720090246767,-47239.6424796,0.00014,2]
[331121345,1720090427317,19350.85969045,0.00011199,2]
[331121346,1720090475392,166.85,0.00025018,120]
[331121347,1720090483431,9073.0,0.00026,120]
[331121348,1720090652591,155.78867266,0.00011199,2]
[331121349,1720090653489,378.75665363,0.00011199,2]
[331121350,1720090692384,263.58284568,0.00011199,2]
[331121351,1720090948489,6852.99177288,0.00011199,2]
[331121354,1720091131466,263.58284568,0.00011199,2]
[331121355,1720091423739,748.71,0.00010456,2]
[331121363,1720091432393,-253.77884544,0.00012273,2]
[331121364,1720091432406,-56.22115456,0.00012273,2]
[331121365,1720091432416,-260.42884544,0.0001233,2]
[331121366,1720091432428,-329.14260328,0.0001233,2]
[331121367,1720091432447,-460.04607448,0.0001233,2]
[331121368,1720091432462,-118.3914368,0.0001233,2]
[331121369,1720091432472,-1168.00896,0.0001234,2]
[331121370,1720091432482,-500.0,0.00012358,2]
[331121371,1720091432494,-1168.00896,0.0001237,2]
[331121372,1720091432504,-795.2,0.00012384,2]
[331121373,1720091432514,-188.64,0.000124,2]
[331121374,1720091432523,-1168.00897,0.0001241,2]
[331121375,1720091432533,-1168.00896,0.0001245,2]
[331121376,1720091432543,-1168.00896,0.0001249,2]
[331121377,1720091432553,-748.71,0.0001272,2]
[331121378,1720091432562,-151.56,0.00012747,2]
[331121379,1720091432573,-150.99,0.00012784,2]
[331121380,1720091432582,-151.56,0.00012784,2]
[331121381,1720091432591,-317.22,0.00012821,2]
[331121382,1720091432601,-151.56,0.00012821,2]
[331121383,1720091432610,-300.0,0.00012857,2]
[331121384,1720091432620,-151.56,0.00012858,2]
[331121385,1720091432629,-150.0,0.00012884,2]
[331121386,1720091432639,-300.0,0.00012885,2]
[331121387,1720091432648,-6081.24,0.00012886,2]
[331121388,1720091432659,-151.56,0.00012894,2]
[331121389,1720091432670,-1528.47,0.0001292,2]
[331121390,1720091432679,-150.99,0.0001292,2]
[331121391,1720091432689,-151.56,0.00012931,2]
[331121392,1720091432700,-151.56,0.00012968,2]
[331121393,1720091432710,-151.56,0.00013005,2]
[331121394,1720091432719,-151.56,0.00013042,2]
[331121395,1720091432728,-1852.42,0.00013046,2]
[331121396,1720091432737,-151.56,0.00013079,2]
[331121397,1720091432747,-151.56,0.00013116,2]
[331121398,1720091432757,-231.61380733,0.00013128,2]
[331121399,1720091432767,-151.56,0.00013153,2]
[331121400,1720091432776,-151.56,0.0001319,2]
[331121401,1720091432786,-938.81,0.00013213,2]
[331121402,1720091432796,-500.0,0.00013215,2]
[331121403,1720091432805,-250.0,0.00013221,2]
[331121404,1720091432815,-151.56,0.00013227,2]
[331121405,1720091432824,-151.56,0.00013264,2]
[331121406,1720091432834,-151.56,0.000133,2]
[331121407,1720091432843,-186.09,0.00013333,2]
[331121408,1720091432852,-151.56,0.00013337,2]
[331121409,1720091432865,-151.56,0.00013374,2]
[331121410,1720091432874,-200.0,0.00013392,2]
[331121411,1720091432883,-151.56,0.00013411,2]
[331121412,1720091432892,-155.21916288,0.00013516,2]
[331121413,1720091432902,-250.0,0.00013575,2]
[331121414,1720091432912,-160.55280855,0.0001359,2]
[331121415,1720091432921,-1453.04,0.00013699,2]
[331121416,1720091432930,-1006.2,0.00013699,2]
[331121417,1720091432940,-500.0,0.00013699,2]
[331121418,1720091432951,-9999.99,0.0001371,2]
[331121419,1720091432960,-381.88251463,0.0001374,2]
[331121420,1720091432970,-1000.0,0.00013759,2]
[331121421,1720091432983,-698.35935803,0.00013759,2]
[331121422,1720091432992,-1000.0,0.00013759,2]
[331121423,1720091433002,-25377.13,0.0001376,2]
[331121424,1720091433012,-1702.15128074,0.00013783,2]
[331121425,1720091433024,-3088.5955,0.00013783,2]
[331121426,1720091433036,-5798.4,0.00013783,2]
[331121427,1720091433047,-13310.85321926,0.00013783,2]
[331121428,1720091433056,-200.0,0.00013814,2]
[331121429,1720091433066,-2201.55152983,0.00013849,2]
[331121430,1720091433076,-327.63430945,0.000139,2]
[331121431,1720091433086,-1000.0,0.000139,2]
[331121432,1720091433095,-6105.54756726,0.000139,2]
[331121433,1720091433106,-45079.01913274,0.000139,2]
[331121434,1720091433115,-1434.82568833,0.000139,2]
[331121435,1720091433125,-948.6865,0.000139,2]
[331121436,1720091433134,-2500.0,0.000139,2]
[331121437,1720091433143,-795.2,0.00013932,2]
[331121438,1720091433153,-1590.53,0.00013973,3]
[331121439,1720091433162,-175.24619851,0.00013989,2]
[331121440,1720091433172,-152.3647633,0.0001399,2]
[331121441,1720091433182,-1562.23,0.0001399,2]
[331121442,1720091433191,-1562.23,0.0001399,2]
[331121443,1720091433203,-1562.23,0.0001399,2]
[331121444,1720091433212,-199.77368546,0.00013999,2]
[331121445,1720091433224,-174.01178014,0.00013999,2]
[331121446,1720091433234,-274526.89808739,0.00014,2]
[331121447,1720091433244,-797.39,0.00014044,2]
[331121448,1720091433253,-194.34767552,0.00014099,2]
[331121449,1720091433262,-499.99,0.0001419,2]
[331121450,1720091433545,-173.24,0.00014316,2]
[331121451,1720091433572,-327.6343094,0.00014899,2]
[331121452,1720091433582,-1434.82568826,0.00014899,2]
[331121453,1720091433591,-748.71,0.00014984,2]
[331121454,1720091433600,-1041.1344562,0.00015,2]
[331121455,1720091433609,-2660.89755206,0.00015479,2]
[331121456,1720091433619,-795.2,0.0001548,2]
[331121457,1720091433629,-341.66,0.00015756,2]
[331121458,1720091433638,-289.59,0.00015879,2]
[331121459,1720091433647,-1562.23,0.00015888,2]
[331121460,1720091433658,-327.6343094,0.00015898,2]
[331121461,1720091433669,-1434.82568826,0.00015898,2]
[331121462,1720091433678,-168.23,0.0001626,2]
[331121463,1720091433687,-527.17227954,0.00016315,2]
[331121464,1720091433698,-1765.79769823,0.000165,2]
[331121465,1720091433707,-341.66,0.00016544,2]
[331121466,1720091433716,-176.25,0.00016651,2]
[331121467,1720091433725,-166.85,0.00016678,2]
[331121468,1720091433735,-475.71197158,0.00016699,2]
[331121469,1720091433744,-245.4,0.00016778,2]
[331121470,1720091433753,-269.66585557,0.00016808,2]
[331121471,1720091433763,-327.6343094,0.00016897,2]
[331121472,1720091433773,-1434.82568826,0.00016897,2]
[331121473,1720091433784,-199.85,0.00016938,2]
[331121474,1720091433793,-2507.56827694,0.00017,2]
[331121475,1720091433809,-795.2,0.00017028,2]
[331121476,1720091433822,-365.26443049,0.00017159,2]
[331121477,1720091433831,-155.0,0.00017159,2]
[331121478,1720091433840,-269.0153369,0.00017199,2]
[331121479,1720091433850,-753.59338141,0.00017199,2]
[331121480,1720091433860,-748.71,0.00017248,2]
[331121481,1720091433869,-328.85804811,0.00017253,2]
[331121482,1720091433879,-216.93020437,0.00017253,2]
[331121483,1720091433889,-492.24879878,0.00017257,2]
[331121484,1720091433898,-155.0,0.00017257,2]
[331121485,1720091433908,-356.26776045,0.00017257,2]
[331121486,1720091433917,-356.26776045,0.00017259,2]
[331121487,1720091433927,-205.41084335,0.00017259,2]
[331121488,1720091433937,-227.14852012,0.00017259,2]
[331121489,1720091433947,-163.84092695,0.00017259,2]
[331121490,1720091433957,-159.06957682,0.00017259,2]
[331121491,1720091433966,-155.0,0.00017259,2]
[331121492,1720091433976,-341.66,0.00017332,2]
[331121493,1720091433985,-155.0,0.00017444,2]
[331121494,1720091433995,-158.47133143,0.00017444,2]
[331121495,1720091434004,-155.0,0.00017444,2]
[331121496,1720091434013,-242.43380697,0.00017444,2]
[331121497,1720091434023,-155.0,0.00017444,2]
[331121498,1720091434032,-202.72559596,0.00017444,2]
[331121499,1720091434042,-2344.0,0.000176,3]
[331121500,1720091434051,-566.0,0.000178,3]
[331121501,1720091434061,-327.6343094,0.00017896,2]
[331121502,1720091434071,-1434.82568826,0.00017896,2]
[331121503,1720091434080,-412.61839352,0.00018,2]
[331121504,1720091434089,-341.66,0.0001812,2]
[331121505,1720091434099,-176.25,0.00018316,2]
[331121506,1720091434109,-1929.883,0.00018352,2]
[331121507,1720091434118,-1474.819,0.00018352,2]
[331121508,1720091434128,-458.39,0.00018352,2]
[331121509,1720091434137,-331.08772883,0.00018399,2]
[331121510,1720091434146,-795.2,0.00018576,2]
[331121511,1720091434156,-821.908,0.00018732,2]
[331121512,1720091434168,-432.603,0.00018732,2]
[331121513,1720091434177,-1273.0,0.00018849,2]
[331121514,1720091434186,-154.12,0.00018849,30]
[331121515,1720091434196,-327.6343094,0.00018894,2]
[331121516,1720091434206,-1434.82568826,0.00018894,2]
[331121517,1720091434215,-341.66,0.00018908,2]
[331121518,1720091434227,-961.50741166,0.00019,2]
[331121519,1720091434237,-199.85,0.00019055,2]
[331121520,1720091434247,-1006.2,0.00019178,2]
[331121521,1720091434257,-250.0,0.00019178,2]
[331121522,1720091434266,-155.0,0.00019229,2]
[331121523,1720091434276,-155.0,0.00019229,2]
[331121524,1720091434285,-296.94055061,0.00019352,2]
[331121525,1720091434295,-500.0,0.00019389,2]
[331121526,1720091434304,-500.0,0.00019389,2]
[331121527,1720091434314,-500.0,0.00019389,2]
[331121528,1720091434323,-748.71,0.00019512,2]
[331121529,1720091434332,-1000.0,0.00019566,2]
[331121530,1720091434342,-153.27,0.0001979,2]
[331121531,1720091434351,-1562.23,0.0001979,2]
[331121532,1720091434361,-16761.33232362,0.000198,2]
[331121534,1720091434750,-13111.38324138,0.000198,2]
[331121535,1720091434778,-4235.04792031,0.000198,2]
[331121536,1720091434797,-424.54627044,0.000198,2]
[331121537,1720091434808,-3481.8,0.000198,2]
[331121538,1720091434821,-2589.02150942,0.000198,2]
[331121539,1720091434833,-42613.57557173,0.000198,2]
[331121540,1720091434843,-6253.0,0.000198,3]
[331121541,1720091434853,-528.78078765,0.00019863,2]
[331121542,1720091434862,-365.91407819,0.00019863,2]
[331121543,1720091434872,-327.6343094,0.00019893,2]
[331121544,1720091434881,-1434.82568826,0.00019893,2]
[331121545,1720091434891,-176.25,0.00019981,2]
[331121546,1720091434901,-2245.0,0.0002,2]
[331121547,1720091434910,-327.27195084,0.0002,2]
[331121548,1720091434919,-867.82451069,0.0002,2]
[331121549,1720091434929,-1404.85693813,0.0002,2]
[331121550,1720091434939,-1277.32925782,0.0002,2]
[331121551,1720091434949,-2018.95610953,0.000202,2]
[331121552,1720091434959,-11483.0,0.000203,5]
[331121553,1720091434968,-168.23,0.00020325,2]
[331121554,1720091434977,-150.0,0.00020441,2]
[331121555,1720091434987,-11888.1009767,0.00020457,2]
[331121556,1720091434996,-600.0,0.00020477,2]
[331121557,1720091435006,-166.49751087,0.0002049,2]
[331121558,1720091435016,-1875.0,0.000205,2]
[331121559,1720091435026,-266.0,0.000205,2]
[331121560,1720091435035,-190.36952128,0.000205,2]
[331121561,1720091435045,-13511.5194336,0.0002065,2]
[331121562,1720091435054,-11888.1009767,0.0002066,2]
[331121563,1720091435063,-19691.72797917,0.0002066,2]
[331121573,1720091438403,-155.0,0.00017259,2]
[331121574,1720091438414,-1357.75792132,0.0002066,2]
[331121575,1720091438427,-2104.93626584,0.0002066,2]
[331121576,1720091438439,-426.78019623,0.0002066,2]
[331121577,1720091438453,-284.64340056,0.0002066,2]
[331121578,1720091438464,-1068.89864221,0.0002066,2]
[331121579,1720091438476,-15599.81389537,0.0002066,2]
[331121580,1720091438486,-35664.3029301,0.0002067,2]
[331121581,1720091438496,-27023.0388671,0.0002067,2]
[331121582,1720091438507,-71611.93058226,0.0002068,2]
[331121583,1720091438517,-13511.5194336,0.0002068,2]
[331121584,1720091438527,-11888.1009767,0.0002069,2]
[331121585,1720091438536,-926.97166036,0.00020778,2]
[331121586,1720091438546,-331.06717121,0.000208,2]
[331121587,1720091438557,-792.54061096,0.000208,2]
[331121588,1720091438567,-13511.5194336,0.00020872,2]
[331121589,1720091438576,-11888.1009767,0.00020882,2]
[331121590,1720091438586,-327.6343094,0.00020892,2]
[331121591,1720091438596,-1434.82568826,0.00020892,2]
[331121592,1720091438606,-200.0,0.000209,7]
[331121593,1720091438616,-1172.30462817,0.00021,2]
[331121594,1720091438625,-225.0064552,0.00021,2]
[331121595,1720091438635,-414.27755141,0.00021,5]
[331121596,1720091438644,-150.0,0.0002109,2]
[331121597,1720091438655,-199.85,0.00021172,2]
[331121598,1720091438665,-600.0,0.0002133,2]
[331121599,1720091438675,-180.0,0.00021397,2]
[331121600,1720091438685,-1036.0,0.000214,2]
[331121601,1720091438695,-150.0,0.00021634,2]
[331121602,1720091438707,-346.96,0.00021644,2]
[331121604,1720091438716,-151.68,0.00021644,2]
[331121606,1720091438726,-155.19,0.00021644,2]
[331121608,1720091438736,-225.92,0.00021644,2]
[331121610,1720091438746,-150.0,0.0002165,2]
[331121612,1720091438756,-13511.5194336,0.00021651,2]
[331121614,1720091438769,-150.0,0.00021652,2]
[331121616,1720091438779,-150.0,0.00021655,2]
[331121618,1720091438788,-150.0,0.00021655,2]
[331121620,1720091438798,-11888.1009767,0.0002166,2]
[331121622,1720091438808,-150.0,0.00021661,2]
[331121624,1720091438818,-150.0,0.00021665,2]
[331121626,1720091438828,-150.0,0.00021665,2]
[331121628,1720091438838,-150.0,0.00021667,2]
[331121630,1720091438848,-199.0,0.0002167,3]
[331121632,1720091438857,-150.0,0.00021678,2]
[331121634,1720091438867,-150.0,0.00021682,2]
[331121636,1720091438877,-150.0,0.00021686,2]
[331121638,1720091438887,-212.75348477,0.00021688,2]
[331121640,1720091438896,-150.0,0.00021696,2]
[331121642,1720091438906,-150.0,0.00021698,2]
[331121644,1720091438916,-150.0,0.00021698,2]
[331121646,1720091438926,-150.0,0.00021699,2]
[331121648,1720091438935,-150.0,0.00021701,2]
[331121650,1720091438944,-150.0,0.00021703,2]
[331121652,1720091438954,-150.0,0.00021706,2]
[331121654,1720091438964,-150.0,0.00021709,2]
[331121656,1720091438973,-150.0,0.00021712,2]
[331121658,1720091438983,-150.0,0.00021719,2]
[331121660,1720091438993,-150.0,0.00021722,2]
[331121662,1720091439003,-150.0,0.00021727,2]
[331121664,1720091439012,-150.0,0.00021729,2]
[331121666,1720091439023,-150.0,0.0002173,2]
[331121668,1720091439033,-150.0,0.0002173,2]
[331121670,1720091439043,-150.0,0.00021731,2]
[331121672,1720091439053,-13511.5194336,0.00021732,2]
[331121674,1720091439064,-500.0,0.00021741,2]
[331121676,1720091439074,-200.0,0.00021741,2]
[331121678,1720091439084,-500.0,0.00021741,2]
[331121680,1720091439094,-500.0,0.00021742,2]
[331121682,1720091439104,-500.0,0.00021742,2]
[331121684,1720091439114,-200.0,0.00021742,2]
[331121686,1720091439124,-150.0,0.00021744,2]
[331121688,1720091439135,-158.42629158,0.00021746,2]
[331121690,1720091439145,-150.0,0.00021746,2]
[331121692,1720091439155,-150.0,0.00021753,2]
[331121694,1720091439164,-150.0,0.00021759,2]
[331121696,1720091439175,-150.0,0.00021761,2]
[331121698,1720091439184,-150.0,0.00021766,2]
[331121700,1720091439195,-150.0,0.00021767,2]
[331121702,1720091439205,-150.0,0.00021767,2]
[331121704,1720091439215,-150.0,0.00021771,2]
[331121706,1720091439225,-150.0,0.00021773,2]
[331121708,1720091439234,-7500.0,0.00021775,2]
[331121710,1720091439244,-748.71,0.00021776,2]
[331121712,1720091439254,-150.0,0.00021777,2]
[331121714,1720091439265,-150.0,0.0002178,2]
[331121716,1720091439275,-1500.0,0.00021782,2]
[331121718,1720091439286,-11888.1009767,0.00021785,2]
[331121720,1720091439296,-150.0,0.00021787,2]
[331121722,1720091439307,-150.0,0.00021788,2]
[331121724,1720091439317,-150.0,0.00021789,2]
[331121726,1720091439328,-13511.5194336,0.0002179,2]
[331121728,1720091439339,-150.0,0.00021793,2]
[331121730,1720091439349,-150.0,0.00021794,2]
[331121732,1720091439360,-154.6283145,0.00021795,2]
[331121735,1720091439371,-150.0,0.00021798,2]
[331121737,1720091439383,-150.0,0.00021798,2]
[331121738,1720091439394,-500.0,0.000218,7]
[331121741,1720091439404,-2931.863616,0.000218,5]
[331121742,1720091439414,-150.0,0.00021802,2]
[331121745,1720091439426,-150.0,0.00021806,2]
[331121747,1720091439436,-150.0,0.00021808,2]
[331121748,1720091439446,-220.24,0.00021808,3]
[331121751,1720091439459,-150.0,0.00021814,2]
[331121752,1720091439470,-150.0,0.00021823,2]
[331121755,1720091439480,-150.0,0.00021824,2]
[331121757,1720091439491,-150.0,0.00021832,2]
[331121759,1720091439505,-150.0,0.00021838,2]
[331121761,1720091439515,-150.0,0.00021851,2]
[331121763,1720091439525,-13511.5194336,0.00021854,2]
[331121765,1720091439535,-160.0,0.00021855,2]
[331121767,1720091439545,-150.0,0.00021856,2]
[331121769,1720091439556,-150.0,0.00021862,2]
[331121771,1720091439566,-160.0,0.00021864,2]
[331121773,1720091439575,-11256.98397823,0.00021865,2]
[331121798,1720091439820,-631.11699847,0.00021865,2]
[331121800,1720091439835,-8670.38300153,0.00021865,2]
[331121802,1720091439848,-1675.02296272,0.00021865,2]
[331121805,1720091439860,-1226.25150514,0.00021865,2]
[331121857,1720091440532,-1939.86196421,0.00021865,2]
[331121859,1720091440542,-160.0,0.00021873,2]
[331121861,1720091440553,-11888.1009767,0.00021875,2]
[331121863,1720091440563,-13511.5194336,0.00021875,2]
[331121866,1720091440573,-11888.1009767,0.00021878,2]
[331121869,1720091440584,-13511.5194336,0.00021878,2]
[331121871,1720091440595,-160.0,0.00021882,2]
[331121873,1720091440605,-150.0,0.00021882,2]
[331121875,1720091440616,-150.0,0.00021884,2]
[331121877,1720091440626,-11888.1009767,0.00021885,2]
[331121879,1720091440635,-27023.0388671,0.00021885,2]
[331121881,1720091440645,-11888.1009767,0.0002189,2]
[331121883,1720091440657,-160.0,0.00021891,2]
[331121885,1720091440667,-327.6343094,0.00021891,2]
[331121887,1720091440677,-1434.82568826,0.00021891,2]
[331121889,1720091440687,-35664.3029301,0.00021895,2]
[331121891,1720091440697,-40534.5583007,0.00021895,2]
[331121893,1720091440711,-150.0,0.00021895,2]
[331121895,1720091440720,-11888.1009767,0.00021898,2]
[331121897,1720091440730,-13511.5194336,0.00021898,2]
[331121899,1720091440740,-150.0,0.00021899,2]
[331121901,1720091440751,-160.0,0.00021899,2]
[331121903,1720091440762,-700.0,0.000219,7]
[331121905,1720091440772,-5800.0,0.000219,2]
[331121907,1720091440782,-1013.52,0.000219,2]
[331121909,1720091440792,-2000.0,0.000219,2]
[331121911,1720091440803,-2000.0,0.000219,2]
[331121913,1720091440813,-491.0,0.000219,4]
[331121915,1720091440823,-150.0,0.000219,2]
[331121917,1720091440832,-257.0,0.000219,2]
[331121919,1720091440841,-150.0,0.00021902,2]
[331121921,1720091440851,-150.0,0.00021902,2]
[331121923,1720091440860,-5871.9898312,0.00021905,2]
[331121925,1720091440870,-66780.101272,0.00021905,2]
[331121927,1720091440880,-2885.2722789,0.00021905,2]
[331121929,1720091440889,-150.0,0.00021905,2]
[331121932,1720091440899,-150.0,0.00021906,2]
[331121934,1720091440909,-11888.1009767,0.00021908,2]
[331121936,1720091440919,-160.0,0.00021908,2]
[331121938,1720091440928,-5800.0,0.00021909,2]
[331121940,1720091440938,-165.66185172,0.0002191,2]
[331121942,1720091440947,-174.08619548,0.0002191,2]
[331121944,1720091440959,-2896.009056,0.0002191,2]
[331121945,1720091440968,-2000.0,0.0002191,2]
[331121947,1720091440978,-13511.5194336,0.0002191,2]
[331121949,1720091440987,-1000.0,0.00021916,2]
[331121952,1720091440997,-196.45619563,0.00021916,2]
[331121954,1720091441007,-616.44664626,0.00021916,2]
[331121956,1720091441017,-150.0,0.00021916,2]
[331121958,1720091441026,-5800.0,0.00021917,2]
[331121960,1720091441035,-160.0,0.00021917,2]
[331121961,1720091441045,-500.0,0.00021917,2]
[331121964,1720091441054,-1280.9548049,0.00021917,2]
[331121965,1720091441063,-168.23,0.00021918,2]
[331121967,1720091441073,-150.0,0.00021918,2]
[331121970,1720091441083,-500.0,0.00021918,2]
[331121972,1720091441093,-500.0,0.00021918,2]
[331121974,1720091441102,-500.0,0.00021918,2]
[331121976,1720091441111,-500.0,0.00021918,2]
[331121978,1720091441120,-500.0,0.00021918,2]
[331121980,1720091441129,-500.0,0.00021918,2]
[331121982,1720091441139,-2000.0,0.0002192,2]
[331121983,1720091441147,-5000.0,0.0002193,2]
[331121985,1720091441157,-2000.0,0.0002193,2]
[331121986,1720091441166,-2151.81941,0.0002194,2]
[331121988,1720091441175,-5000.0,0.00021946,2]
[331121990,1720091441184,-160.02878709,0.00021949,2]
[331121992,1720091441194,-188.25830506,0.0002196,2]
[331121994,1720091441204,-155.27427709,0.00021964,3]
[331121996,1720091441213,-155.0,0.00021981,2]
[331121998,1720091441222,-3481.64441257,0.00021985,2]
[331122000,1720091441231,-11888.1009767,0.0002199,2]
[331122002,1720091441240,-1000.0,0.00021995,2]
[331122004,1720091441249,-171.8317384,0.00022,2]
[331122006,1720091441258,-501.04,0.00022,2]
[331122008,1720091441268,-793.14485048,0.00022,2]
[331122009,1720091441277,-159.64043736,0.00022,2]
[331122011,1720091441286,-1059.11823225,0.00022,2]
[331122013,1720091441295,-673.27681486,0.00022,3]
[331122015,1720091441306,-1800.0,0.00022,20]
[331122017,1720091441316,-275.883837,0.00022,2]
[331122019,1720091441325,-166.66666667,0.00022024,2]
[331122021,1720091441334,-852.0856759,0.00022048,2]
[331122024,1720091441347,-12659.4337577,0.00022048,2]
[331122025,1720091441356,-280.28706351,0.00022056,2]
[331122027,1720091441366,-152.32268168,0.00022059,2]
[331122029,1720091441376,-372.47195336,0.00022064,2]
[331122031,1720091441390,-1891.6269428,0.00022067,2]
[331122034,1720091441404,-1590.01746974,0.00022067,2]
[331122036,1720091441415,-400.0,0.0002207,2]
[331122038,1720091441424,-327.2370522,0.0002207,2]
[331122040,1720091441436,-74.32646633,0.0002207,2]
[331122042,1720091441445,-400.0,0.0002207,2]
[331122044,1720091441456,-298.74435414,0.00022071,2]
[331122046,1720091441468,-532.90132142,0.00022075,2]
[331122048,1720091441480,-700.6021,0.00022075,2]
[331122050,1720091441491,-3477.71526273,0.00022075,2]
[331122052,1720091441503,-2310.06028183,0.00022075,2]
[331122054,1720091441514,-3249.95340702,0.00022075,2]
[331122057,1720091441526,-635.74,0.00022075,2]